bitfinex/quotes_ETHUSD_20250808
["timestamp","ask_amount","ask_price","bid_price","bid_amount"]
[1754667926670,0.002,3936.8,3936.7,2.54019864]
[1754667926840,0.04,3937.4,3937.3,2.53981154]
[1754667927046,0.04,3937.4,3937.3,14.28386154]
[1754667927266,0.04,3937.4,3937.3,9.95442454]
[1754667927473,0.04,3937.4,3937.3,9.98179154]
[1754667927678,0.04,3937.4,3937.3,8.69961554]
[1754667927846,0.04,3937.4,3937.3,25.38075463]
[1754667928040,0.04,3937.4,3937.3,16.16608163]
[1754667928246,0.04,3937.4,3937.3,13.14010163]
[1754667928677,0.04,3937.4,3937.3,8.94610163]
[1754667928983,0.04,3937.4,3937.3,8.09510163]
[1754667929177,0.04,3937.4,3937.2,2.53983797]
[1754667929345,0.04,3937.4,3937.3,2.53981154]
[1754667929768,0.04,3937.4,3936.7,3.8080478]
[1754667929974,0.04,3937.4,3937.2,2.53987016]
[1754667930147,0.04,3937.4,3937.3,2.53981154]
[1754667931572,0.04,3937.4,3936.7,3.8080478]
[1754667931745,3.46482425,3937.3,3936.8,2.16367685]
[1754667931948,0.925,3937.2,3935.9,2.54068102]
[1754667932170,2.54024859,3936.7,3935.9,2.54070586]
[1754667932385,0.925,3936.6,3935.9,2.54068816]
[1754667932549,0.925,3936.6,3935.9,2.54067981]
[1754667932745,2.54039223,3936.4,3935.2,0.001]
[1754667932945,2.5408059,3935.8,3935.2,0.001]
[1754667933195,4.193,3936.3,3935.2,0.001]
[1754667933196,5.118,3936.3,3935.2,0.001]
[1754667933389,2.54110233,3935.3,3935.2,0.001]
[1754667933988,4.193,3936.3,3935.2,0.001]
[1754667933989,0.925,3936.7,3935.2,0.001]
[1754667934146,2.54031025,3936.6,3935.6,2.5408534]
[1754667934500,0.925,3936.5,3935.2,0.001]
[1754667934678,0.925,3936.5,3935.2,3.001]
[1754667934859,0.925,3936.5,3936.0,2.54064483]
[1754667935203,4.193,3936.6,3936.5,2.5403277]
[1754667935493,4.193,3936.6,3936.4,2.54036763]
[1754667935699,4.193,3936.6,3936.3,2.54044566]
[1754667935849,4.193,3936.6,3935.6,2.54090862]
[1754667935850,4.193,3936.6,3936.2,2.54050161]
[1754667936052,0.925,3937.1,3936.4,2.54039178]
[1754667936359,0.925,3937.1,3936.5,2.54029078]
[1754667936360,1.27547699,3937.1,3936.5,2.54029078]
[1754667936687,0.925,3937.1,3936.8,0.1272]
[1754667936850,4.193,3937.3,3936.8,0.1272]
[1754667937279,0.925,3937.1,3936.8,0.1272]
[1754667937648,0.925,3937.0,3936.8,0.1272]
[1754667937853,0.002,3937.2,3936.0,0.001]
[1754667937854,2.54058585,3936.1,3936.0,0.001]
[1754667938052,2.54058585,3936.1,3935.2,0.001]
[1754667938053,5.118,3936.1,3935.2,0.001]
[1754667938362,0.925,3936.0,3935.2,0.001]
[1754667938781,2.54087724,3935.7,3935.2,0.001]
[1754667938987,2.99211495,3935.9,3935.2,0.001]
[1754667938988,2.99217112,3935.9,3935.2,0.001]
[1754667939165,3.30664262,3935.9,3935.2,2.54215305]
[1754667939493,0.7658715,3935.9,3935.2,0.001]
[1754667939696,0.7658715,3935.9,3935.3,2.54103962]
[1754667940258,0.7658715,3935.9,3935.4,2.54102803]
[1754667940497,0.7658715,3935.9,3935.2,0.001]
[1754667940700,4.193,3936.1,3935.3,2.54105846]
[1754667940859,4.193,3936.1,3935.6,2.5408965]
[1754667941193,2.54019415,3936.8,3935.4,2.54102855]
[1754667941194,0.4514,3936.8,3935.4,2.54103775]
[1754667941395,4.193,3936.7,3936.1,2.54053194]
[1754667941561,4.95880807,3936.7,3936.2,2.54050362]
[1754667941890,4.95880807,3936.7,3935.7,10.64381064]
[1754667942192,0.002,3936.8,3935.8,3.0]
[1754667942362,0.002,3936.8,3936.4,2.54038752]
[1754667942562,0.002,3936.8,3936.0,2.5406504]
[1754667942873,0.002,3936.8,3935.8,5.54075948]
[1754667943085,0.002,3936.8,3936.6,2.54025533]
[1754667943300,0.002,3936.8,3935.9,2.54071495]
[1754667943301,0.002,3936.8,3936.5,2.54032386]
[1754667943600,0.002,3936.8,3936.4,2.54038435]
[1754667943785,0.002,3936.8,3935.8,2.54077951]
[1754667944108,0.002,3936.8,3935.9,1.55605902]
[1754667944283,0.002,3936.8,3936.3,2.5404077]
[1754667944464,0.002,3936.8,3936.5,2.54029956]
[1754667944664,0.002,3936.8,3936.4,2.54037557]
[1754667944966,0.002,3936.8,3935.9,4.09674239]
[1754667944967,0.002,3936.8,3936.7,2.54019864]
[1754667945281,0.002,3936.8,3936.7,3.07364898]
[1754667945488,0.002,3936.8,3936.7,3.048247]
[1754667945688,0.002,3936.8,3936.7,3.498847]
[1754667945893,0.002,3936.8,3936.7,14.49573298]
[1754667946075,0.002,3936.8,3936.7,14.87879]
[1754667946381,0.002,3936.8,3936.7,3.498847]
[1754667946585,0.002,3936.8,3936.7,3.048247]
[1754667946794,0.002,3936.8,3936.7,0.50804836]
[1754667947609,0.002,3936.8,3936.7,2.54019864]
[1754667947775,0.002,3936.8,3936.7,3.11799864]
[1754667949014,0.002,3936.8,3936.7,3.51939864]
[1754667949229,0.002,3936.8,3936.7,6.11799864]
[1754667949375,0.002,3936.8,3936.7,6.51939864]
[1754667949571,0.002,3937.2,3937.1,2.53994056]
[1754667949802,0.002,3937.2,3937.1,5.66714056]
[1754667950298,0.002,3937.2,3937.1,6.11774056]
[1754667950765,0.002,3937.2,3937.1,5.66714056]
[1754667951166,0.002,3937.2,3937.1,6.11774056]
[1754667951396,0.002,3937.2,3937.1,6.58955508]
[1754667951601,0.002,3937.2,3937.1,6.13895508]
[1754667951805,0.002,3937.2,3937.1,10.33095508]
[1754667952165,0.002,3937.2,3937.1,10.78155508]
[1754667953475,0.002,3937.2,3937.1,11.18295508]
[1754667953676,0.002,3937.2,3937.1,11.18195508]
[1754667954101,0.002,3937.2,3937.1,10.78055508]
[1754667954314,0.002,3937.2,3937.1,10.32995508]
[1754667955024,0.002,3937.2,3937.1,12.97955508]
[1754667955697,0.002,3937.2,3937.1,10.32995508]
[1754667955898,0.002,3937.2,3937.1,13.04195508]
[1754667956096,0.002,3937.2,3937.1,6.13895508]
[1754667956492,0.002,3937.2,3937.1,5.66714056]
[1754667956716,0.9605,3937.2,3937.1,5.66714056]
[1754667956899,0.002,3937.2,3937.1,5.66714056]
[1754667958032,1e-08,3937.2,3937.1,10.71294056]
[1754667958398,0.002,3937.6,3937.3,5.53981154]
[1754667958599,0.002,3937.6,3937.5,16.14017028]
[1754667958821,0.002,3937.6,3937.5,18.67985281]
[1754667959099,0.04,3938.4,3938.1,2.53929559]
[1754667959297,0.04,3938.4,3938.1,2.66649559]
[1754667959633,0.04,3938.4,3938.1,5.66649559]
[1754667959835,0.04,3938.4,3938.1,11.82684501]
[1754667960138,0.04,3938.4,3938.1,7.63684501]
[1754667960545,0.4871,3938.2,3938.1,2.66649559]
[1754667960832,0.9605,3938.2,3938.1,2.66649559]
[1754667961232,0.002,3938.2,3938.1,2.66649559]
[1754667961964,0.9605,3938.2,3938.1,2.66649559]
[1754667962173,0.002,3938.2,3938.1,2.66649559]
[1754667962533,0.002,3938.2,3938.1,6.1870871]
[1754667963927,0.002,3938.2,3938.1,10.3760871]
[1754667964129,0.002,3938.2,3938.1,6.1870871]
[1754667965583,0.002,3938.2,3938.1,2.66649559]
[1754667966345,0.4754,3938.2,3938.1,0.1272]
[1754667966540,0.9605,3938.2,3938.1,0.1272]
[1754667967474,0.9605,3938.2,3937.7,0.1272]
[1754667967475,3.62694937,3938.2,3937.7,0.1272]
[1754667967638,0.9585,3938.1,3937.7,0.1272]
[1754667967970,0.52757,3938.0,3937.7,0.1272]
[1754667968142,2.53942497,3937.9,3937.7,0.1272]
[1754667968349,0.9585,3937.8,3937.7,0.1272]
[1754667970594,0.002,3938.2,3937.7,2.66673721]
[1754667970905,0.002,3938.2,3938.1,2.53929559]
[1754667971079,0.002,3938.2,3938.1,2.66649559]
[1754667971393,0.002,3938.2,3938.1,0.1272]
[1754667971795,0.002,3938.2,3938.1,2.66649559]
[1754667973124,0.9605,3938.2,3938.1,0.1272]
[1754667973315,2.5393149,3938.1,3936.9,2.54006959]
[1754667973464,2.53953722,3937.8,3937.6,0.1272]
[1754667973665,0.9585,3937.7,3937.6,0.1272]
[1754667973966,0.1272,3937.9,3937.3,0.1272]
[1754667974179,5.1455,3937.8,3937.3,0.1272]
[1754667974380,0.9585,3937.7,3937.1,2.53992876]
[1754667974700,0.9585,3937.7,3937.6,0.1272]
[1754667975271,0.9585,3937.7,3936.3,0.001]
[1754667975613,2.53980824,3937.4,3936.7,2.54015595]
[1754667975823,2.53979346,3937.4,3936.3,0.001]
[1754667975974,0.9585,3937.3,3936.3,0.001]
[1754667976173,0.9585,3937.3,3936.9,0.1272]
[1754667976376,0.9585,3937.2,3936.9,0.1272]
[1754667976698,4.186,3937.1,3936.9,0.1272]
[1754667976916,5.1445,3937.1,3936.9,0.1272]
[1754667977067,2.54011743,3936.9,3936.4,0.001]
[1754667977272,2.66739864,3936.7,3936.4,0.001]
[1754667977674,3.62589864,3936.7,3936.4,0.001]
[1754667978072,1.0857,3936.7,3936.4,0.001]
[1754667978300,3.62589864,3936.7,3936.4,0.001]
[1754667978475,1.0857,3936.7,3936.4,0.001]
[1754667978870,3.62589864,3936.7,3936.4,0.001]
[1754667979203,3.49869864,3936.7,3936.4,0.001]
[1754667979899,0.9585,3936.7,3936.4,0.001]
[1754667980102,5.73204916,3937.1,3936.6,0.1282]
[1754667980269,2.54004965,3937.0,3936.6,0.1282]
[1754667980472,0.9585,3937.0,3936.6,0.1282]
[1754667980675,3.49857599,3936.9,3936.6,0.1282]
[1754667980880,0.9585,3936.9,3936.6,0.1282]
[1754667981112,4.186,3937.1,3936.6,2.66840464]
[1754667981330,4.186,3937.1,3936.9,2.54002411]
[1754667981504,4.186,3937.5,3937.3,2.53981053]
[1754667981816,5.1445,3937.5,3937.1,2.5398832]
[1754667981977,4.186,3937.5,3936.6,0.52208102]
[1754667982182,0.9585,3937.4,3937.1,2.53989245]
[1754667982580,4.186,3937.5,3937.3,0.1272]
[1754667983390,3.49824704,3937.4,3937.3,0.1272]
[1754667983591,3.49824704,3937.4,3936.6,0.001]
[1754667983592,2.54008306,3936.9,3936.6,0.001]
[1754667983791,6.72615141,3936.8,3936.6,0.001]
[1754667984105,5.1445,3936.8,3936.6,0.001]
[1754667984316,3.46659864,3936.7,3936.6,0.001]
[1754667984602,4.186,3936.8,3936.6,0.001]
[1754667985232,0.9264,3936.7,3936.6,0.001]
[1754667985514,3.46659864,3936.7,3936.6,0.001]
[1754667985718,3.97783864,3936.7,3936.6,0.001]
[1754667987120,0.9264,3936.7,3936.6,0.001]
[1754667987417,4.185,3936.7,3936.6,0.001]
[1754667988819,4.185,3936.7,3936.6,2.54126317]
[1754667989112,9.12471707,3937.7,3936.6,2.54126317]
[1754667989113,7.0244,3937.7,3936.8,2.54009949]
[1754667989312,0.4393,3938.1,3936.6,0.001]
[1754667989514,4.185,3938.0,3937.9,2.53942456]
[1754667989825,0.002,3938.2,3938.1,2.53929559]
[1754667989981,0.002,3938.2,3938.1,2.56468854]
[1754667990318,0.002,3938.2,3938.1,2.53929559]
[1754667990921,0.002,3938.2,3938.1,3.04716761]
[1754667992198,0.002,3938.2,3938.0,2.53935113]
[1754667992394,0.002,3938.2,3938.1,2.53929559]
[1754667993525,0.002,3938.2,3938.0,2.53934292]
[1754667993736,0.002,3938.2,3938.1,2.53929559]
[1754667994086,0.002,3938.2,3938.1,0.1272]
[1754667994826,0.9284,3938.2,3937.5,2.53963191]
[1754667995116,4.183,3938.1,3937.7,0.1272]
[1754667995633,0.002,3938.2,3937.7,0.26668085]
[1754667995816,0.002,3938.2,3937.8,2.53943768]
[1754667996195,0.002,3938.2,3937.9,2.53942007]
[1754667996515,0.002,3938.2,3937.8,2.53946681]
[1754667996692,0.002,3938.2,3937.3,2.53981154]
[1754667997023,0.002,3938.2,3938.0,2.53930467]
[1754667997229,0.002,3938.2,3938.1,2.53929559]
[1754667998318,0.002,3938.2,3938.1,3.09325438]
[1754668000244,0.002,3938.2,3938.1,3.55415438]
[1754668000732,0.002,3938.2,3938.1,3.09325438]
[1754668000945,0.002,3938.2,3937.5,3.0]
[1754668001254,0.002,3938.2,3937.9,2.5393917]
[1754668001407,0.9264,3938.1,3937.9,2.53941761]
[1754668001608,0.002,3938.2,3938.1,2.53929559]
[1754668001810,0.002,3938.2,3938.0,2.53933678]
[1754668002505,0.002,3938.2,3938.1,2.53929559]
[1754668002694,0.002,3938.2,3938.1,6.82929559]
[1754668002896,0.002,3938.2,3938.1,8.2270667]
[1754668003123,0.002,3938.2,3938.1,11.2270667]
[1754668003332,1e-08,3938.4,3938.3,16.16893365]
[1754668003636,1e-08,3938.4,3938.3,46.16893365]
[1754668004037,1e-08,3938.4,3938.3,47.03123365]
[1754668004219,1e-08,3938.4,3938.3,48.75025784]
[1754668004808,1e-08,3938.4,3938.3,47.52946984]
[1754668005635,1e-08,3938.4,3938.3,47.12806984]
[1754668005840,1e-08,3938.4,3938.3,7.25819083]
[1754668006035,1e-08,3938.4,3937.7,4.29]
[1754668006036,0.92640001,3938.4,3937.7,4.29]
[1754668006247,0.92640001,3938.4,3938.3,0.1272]
[1754668006409,0.92640001,3938.4,3938.3,2.66636664]
[1754668006605,1e-08,3938.4,3938.3,2.66636664]
[1754668007545,1e-08,3938.4,3938.3,3.18693151]
[1754668007911,1e-08,3938.4,3938.3,6.64783151]
[1754668008312,1e-08,3938.4,3938.3,11.22823151]
[1754668008513,1e-08,3938.4,3938.3,10.36593151]
[1754668009025,1e-08,3938.4,3938.3,10.47693151]
[1754668009225,1e-08,3938.4,3938.3,9.95636664]
[1754668009425,0.92640001,3938.4,3938.3,3.1272]
[1754668009629,0.92640001,3938.4,3938.3,5.66636664]
[1754668009830,0.48710001,3938.4,3938.3,5.66636664]
[1754668010230,1e-08,3938.4,3938.3,5.66636664]
[1754668011843,1e-08,3938.4,3938.3,0.1272]
[1754668012011,1e-08,3938.4,3938.3,2.66636664]
[1754668012445,1e-08,3938.4,3938.3,0.1272]
[1754668012446,0.92640001,3938.4,3938.3,0.1272]
[1754668012647,3.46552279,3938.4,3937.8,2.53947743]
[1754668012816,0.92640001,3938.4,3937.5,13.01089405]
[1754668013013,1e-08,3938.4,3938.3,2.53916664]
[1754668013213,1e-08,3938.4,3938.3,2.66636664]
[1754668014034,1e-08,3938.4,3938.3,5.66636664]
[1754668016757,1e-08,3938.4,3938.3,10.40846664]
[1754668016960,1e-08,3938.4,3938.3,13.36515673]
[1754668018058,1e-08,3938.4,3938.3,16.68865673]
[1754668018265,1e-08,3938.4,3938.3,12.51165673]
[1754668018668,1e-08,3938.4,3938.3,16.68765673]
[1754668019472,1e-08,3938.4,3938.3,17.08905673]
[1754668019663,0.002,3938.6,3938.5,15.54993175]
[1754668019870,0.002,3938.6,3938.5,28.32606462]
[1754668020234,1e-08,3938.6,3938.5,33.93506461]
[1754668020864,0.002,3939.2,3938.9,2.53877986]
[1754668020865,1e-08,3939.2,3938.9,2.53877986]
[1754668021049,0.042,3939.4,3938.9,2.53877986]
[1754668021050,0.93520001,3940.4,3939.5,2.53839319]
[1754668021266,1e-08,3940.0,3939.7,2.53826433]
[1754668021446,1e-08,3940.0,3939.9,18.54902953]
[1754668021770,1e-08,3940.0,3939.9,25.83313953]
[1754668022138,0.00200001,3940.4,3940.3,5.53787782]
[1754668022338,0.00200001,3940.4,3940.3,9.84007782]
[1754668023269,0.00200001,3940.4,3940.3,5.66507782]
[1754668023468,0.00200001,3940.4,3940.3,10.6603816]
[1754668023765,0.00200001,3940.4,3940.3,10.6593816]
[1754668024167,0.002,3940.9,3940.3,10.6593816]
[1754668024168,0.002,3940.9,3940.7,2.53762021]
[1754668024370,0.002,3940.9,3940.7,19.72251426]
[1754668024570,0.002,3940.9,3940.7,19.84971426]
[1754668024735,0.002,3940.9,3940.7,20.63052479]
[1754668024936,0.002,3940.9,3940.7,23.63052479]
[1754668025137,0.002,3940.9,3940.7,24.08262479]
[1754668025370,0.002,3940.9,3940.7,23.62952479]
[1754668025576,0.002,3940.9,3940.7,19.45652479]
[1754668025941,0.002,3940.9,3940.7,23.62952479]
[1754668026267,0.002,3940.9,3940.7,30.99869379]
[1754668026438,0.002,3940.9,3940.7,29.49522579]
[1754668026439,1e-08,3940.8,3940.7,29.49522579]
[1754668026638,1e-08,3940.8,3940.7,29.11155279]
[1754668026870,0.04,3941.4,3941.1,2.53731655]
[1754668027070,0.04,3941.4,3941.3,18.67532795]
[1754668027448,0.04,3942.4,3942.2,2.53665465]
[1754668027648,0.04,3942.4,3942.3,2.66379031]
[1754668027861,0.04,3942.4,3942.3,9.83579031]
[1754668028687,0.04,3943.4,3943.3,5.53594704]
[1754668029242,0.9732,3943.4,3943.3,5.66234704]
[1754668029972,0.9732,3943.4,3943.3,3.1264]
[1754668030153,0.9732,3943.4,3943.3,5.66234704]
[1754668030350,0.9732,3943.4,3943.3,3.1264]
[1754668030550,0.9732,3943.4,3943.3,0.1264]
[1754668030800,0.04,3943.4,3943.1,0.1272]
[1754668030943,0.04,3943.4,3943.3,5.66234704]
[1754668031267,0.9732,3943.4,3943.3,5.66234704]
[1754668031577,0.04,3943.4,3943.3,5.66234704]
[1754668032040,0.04,3943.4,3943.3,0.1264]
[1754668032041,0.9732,3943.4,3943.3,0.1264]
[1754668032238,0.9732,3943.4,3942.6,2.53635504]
[1754668032239,1.32409556,3943.4,3942.6,6.7063517]
[1754668032487,0.04,3943.4,3943.2,2.66321136]
[1754668032792,0.9732,3943.4,3943.3,2.66234704]
[1754668032995,0.04,3943.4,3943.3,6.83134704]
[1754668033305,0.04,3943.4,3943.3,2.66234704]
[1754668033709,0.9732,3943.4,3943.3,0.1264]
[1754668034713,0.04,3943.4,3943.3,2.66234704]
[1754668034873,0.04,3943.4,3943.3,9.83034704]
[1754668035627,0.9732,3943.4,3942.3,2.53654037]
[1754668035775,0.9332,3943.3,3942.4,4.167]
[1754668035975,0.4801,3943.3,3943.1,5.53605801]
[1754668036209,0.04,3943.4,3943.1,5.53605801]
[1754668036210,0.04,3943.4,3943.2,5.53596078]
[1754668036372,0.04,3943.4,3943.3,2.53594704]
[1754668036809,0.04,3943.4,3943.3,5.53594704]
[1754668037384,0.4931,3943.4,3943.3,3.0]
[1754668037714,0.04,3943.4,3943.3,5.53594704]
[1754668038012,0.04,3943.4,3943.3,10.9268473]
[1754668038315,0.04,3943.4,3943.3,11.3789473]
[1754668038516,0.04,3944.4,3944.3,2.5353041]
[1754668039076,0.04,3944.4,3944.3,18.57155119]
[1754668039280,0.04,3944.4,3944.3,18.54619815]
[1754668039522,0.04,3944.4,3944.3,20.28597866]
[1754668039813,0.002,3944.6,3944.5,2.53517556]
[1754668039979,0.002,3944.6,3944.5,9.70117556]
[1754668040792,0.002,3944.6,3944.5,10.15327556]
[1754668041120,0.002,3944.6,3944.5,14.77375256]
[1754668041121,1e-08,3944.6,3944.5,14.77375256]
[1754668041298,1e-08,3944.6,3944.5,11.88548609]
[1754668041496,1e-08,3944.6,3944.5,30.91150009]
[1754668041685,1e-08,3944.6,3944.5,28.17555009]
[1754668042020,1e-08,3944.6,3944.5,10.48098609]
[1754668042320,1e-08,3944.6,3944.5,9.70017556]
[1754668042506,1e-08,3944.6,3944.5,3.0]
[1754668042688,1e-08,3944.6,3944.5,5.53517556]
[1754668042689,0.93320001,3944.6,3944.5,5.53517556]
[1754668042890,1e-08,3944.6,3944.5,9.70017556]
[1754668043219,1e-08,3944.6,3944.5,7.164]
[1754668043220,0.48010001,3944.6,3944.5,7.164]
[1754668043419,0.93320001,3944.6,3944.2,2.53535424]
[1754668043599,0.9332,3944.5,3944.2,2.53535424]
[1754668043933,0.9332,3944.4,3943.9,4.164]
[1754668044239,0.9454,3944.3,3944.2,5.53536838]
[1754668044390,0.9454,3944.3,3944.2,3.0]
[1754668044587,0.9454,3944.3,3944.2,5.53536838]
[1754668045031,1e-08,3944.6,3944.4,2.53520725]
[1754668045231,1e-08,3944.6,3944.5,2.53517556]
[1754668045386,1e-08,3944.6,3944.5,0.1264]
[1754668045717,0.94540001,3944.6,3944.4,0.1264]
[1754668045925,0.94540001,3944.6,3944.2,0.1264]
[1754668045926,0.9454,3944.5,3944.2,0.1264]
[1754668046302,0.9454,3944.4,3944.2,0.1264]
[1754668046498,1e-08,3944.6,3944.2,2.53536838]
[1754668046841,1e-08,3944.6,3944.5,0.1264]
[1754668047043,1e-08,3944.6,3944.5,2.66157556]
[1754668047457,0.94540001,3944.6,3944.5,0.1264]
[1754668048319,0.94540001,3944.6,3943.4,2.53584432]
[1754668048320,0.94540001,3944.6,3943.0,2.53612706]
[1754668048632,2.53525381,3944.4,3943.2,2.53598149]
[1754668048816,3.48074906,3944.3,3943.8,0.1264]
[1754668049013,2.53538483,3944.2,3943.8,0.1264]
[1754668049215,2.66165945,3944.4,3943.8,0.1264]
[1754668049416,0.9454,3944.2,3943.8,0.1264]
[1754668049747,3.48076994,3944.2,3943.8,0.1264]
[1754668049920,2.53536994,3944.2,3943.8,0.1264]
[1754668050096,0.9454,3944.1,3943.3,3.0]
[1754668050303,2.53556124,3943.9,3943.4,0.74166127]
[1754668050500,0.9454,3943.8,3943.6,0.1264]
[1754668050699,2.66188247,3944.1,3943.6,0.1264]
[1754668050700,2.53550322,3944.0,3943.6,0.1264]
[1754668050937,0.9454,3943.7,3943.6,0.1264]
[1754668051256,0.9454,3943.7,3943.1,0.25361271]
[1754668051257,0.55000001,3944.6,3943.7,2.53565483]
[1754668051420,0.9454,3944.3,3943.7,2.53565483]
[1754668051610,0.9454,3944.3,3944.0,0.1264]
[1754668051944,0.9454,3944.2,3944.0,0.1264]
[1754668052314,2.53517792,3944.5,3944.0,0.1264]
[1754668052315,0.9454,3944.1,3944.0,0.1264]
[1754668052833,0.9454,3944.1,3943.3,3.0]
[1754668053033,0.55,3943.7,3942.0,2.53673205]
[1754668053209,0.1264,3943.8,3943.2,2.53599144]
[1754668053210,0.9454,3943.8,3943.2,2.53599144]
[1754668053414,0.9454,3943.8,3943.6,0.1264]
[1754668053926,0.1264,3944.1,3943.6,0.1264]
[1754668054130,0.4881,3944.0,3943.6,0.1264]
[1754668054305,0.9454,3943.9,3943.8,0.1264]
[1754668054505,0.9454,3943.9,3942.2,10.84922177]
[1754668054506,2.53603103,3943.2,3942.1,0.041]
[1754668054742,0.9454,3943.1,3942.1,0.041]
[1754668054947,5.1064,3943.0,3942.1,0.041]
[1754668055108,5.1064,3943.0,3940.9,2.5374547]
[1754668055109,2.53729828,3941.2,3940.4,0.761859]
[1754668055309,2.53729828,3941.2,3940.1,0.04]
[1754668055310,0.55,3941.1,3940.1,0.04]
[1754668055575,0.55,3940.9,3940.1,0.04]
[1754668055864,0.9454,3940.8,3940.1,0.04]
[1754668056050,2.53769738,3940.6,3940.1,0.04]
[1754668056251,2.53789917,3940.3,3940.1,0.04]
[1754668056462,0.9454,3940.5,3940.1,0.04]
[1754668056665,0.9454,3940.2,3940.1,0.04]
[1754668057030,4.6183,3940.8,3940.1,0.04]
[1754668057548,4.161,3940.8,3940.1,0.04]
[1754668057859,4.161,3940.8,3940.2,2.53793721]
[1754668058065,4.161,3940.8,3940.7,2.53762021]
[1754668058228,0.9454,3941.5,3940.2,0.25789372]
[1754668058427,0.9454,3941.5,3940.7,2.53759028]
[1754668058677,0.9454,3941.5,3941.2,2.53725459]
[1754668058877,2.09689167,3941.6,3941.5,2.53710516]
[1754668059084,2.09689167,3941.6,3941.4,2.53714674]
[1754668059227,3.04229167,3941.6,3940.8,3.0]
[1754668059615,3.04229167,3941.6,3941.5,2.53710516]
[1754668059616,2.09689167,3941.6,3941.5,2.53710516]
[1754668060240,2.55419167,3941.6,3941.5,2.53710516]
[1754668060443,3.04229167,3941.6,3941.5,2.53710516]
[1754668060636,0.9454,3941.6,3941.5,2.53710516]
[1754668060831,4.162,3942.4,3941.8,2.53689672]
[1754668060832,0.9454,3942.1,3941.8,2.53689672]
[1754668061174,1.45614,3942.1,3941.7,2.53697174]
[1754668061465,0.9454,3942.0,3941.7,2.53697174]
[1754668061762,0.9454,3942.0,3941.6,2.5370248]
[1754668061961,0.9454,3941.9,3941.6,2.5370248]
[1754668062675,0.9454,3941.9,3941.6,2.53703043]
[1754668062826,0.9454,3941.8,3941.6,2.53703043]
[1754668063030,0.51074,3942.1,3941.7,2.53697643]
[1754668063250,0.51074,3942.1,3941.6,2.53703476]
[1754668063470,0.9454,3942.0,3941.6,2.53703476]
[1754668063646,0.4881,3942.0,3941.7,2.53696929]
[1754668063846,0.51074,3942.1,3941.8,2.53690273]
[1754668064047,0.51074,3942.1,3941.8,2.53686534]
[1754668064268,0.9454,3942.0,3941.3,2.53720906]
[1754668064471,0.9454,3942.0,3941.6,2.53698383]
[1754668064783,0.9454,3941.9,3940.8,3.0]
[1754668064982,0.9454,3941.9,3941.5,2.53704439]
[1754668065168,0.1272,3941.9,3941.5,2.53708028]
[1754668065357,0.9454,3941.8,3941.3,0.1272]
[1754668065680,0.9454,3941.7,3941.4,2.53716953]
[1754668065861,5.1074,3941.7,3941.4,2.53716413]
[1754668066062,0.9454,3941.6,3941.3,2.66442185]
[1754668066383,0.9454,3941.6,3941.3,2.66442154]
[1754668067108,0.9454,3941.6,3941.3,0.1272]
[1754668067253,0.4573,3941.6,3941.3,0.1272]
[1754668067456,0.93195,3941.6,3941.3,0.1272]
[1754668067660,0.9454,3941.5,3940.9,0.1272]
[1754668067882,1.0726,3941.5,3940.9,3.1272]
[1754668068063,1.0726,3941.5,3941.1,2.53736207]
[1754668068264,1.0726,3941.5,3941.0,2.53742543]
[1754668068482,1.77002545,3941.4,3941.0,2.53742543]
[1754668068693,0.1272,3941.5,3940.9,0.1272]
[1754668068694,0.1272,3941.5,3941.3,2.537187]
[1754668068986,4.162,3941.5,3941.4,2.53716953]
[1754668070193,0.1272,3941.9,3941.4,2.53716953]
[1754668070194,4.162,3941.8,3941.4,2.53716953]
[1754668070556,2.53716399,3941.5,3940.9,0.001]
[1754668070757,0.55,3941.1,3940.9,0.001]
[1754668070978,7.68535687,3941.0,3940.9,0.001]
[1754668071302,8.63075687,3941.0,3940.9,0.001]
[1754668071669,8.14265687,3941.0,3940.9,0.001]
[1754668071876,8.63075687,3941.0,3940.9,0.001]
[1754668074640,8.50355687,3941.0,3940.9,0.001]
[1754668074794,8.63075687,3941.0,3940.9,0.001]
[1754668075106,4.46875687,3941.0,3940.9,0.001]
[1754668075307,8.63075687,3941.0,3940.9,0.001]
[1754668077574,7.68435687,3941.0,3940.9,0.001]
[1754668077774,8.75425687,3941.0,3940.9,0.001]
[1754668078015,0.60312983,3941.0,3940.9,0.001]
[1754668078181,4.2892,3941.0,3940.9,0.001]
[1754668078382,4.162,3941.0,3940.9,0.001]
[1754668078587,4.2892,3941.0,3940.9,0.001]
[1754668079008,4.162,3941.0,3940.9,0.001]
[1754668079983,7.13662704,3941.0,3940.9,0.001]
[1754668080209,8.27777455,3941.0,3940.9,0.001]
[1754668080406,6.20584751,3941.0,3940.9,0.001]
[1754668080725,6.69942704,3941.0,3940.9,0.001]
[1754668081018,0.1272,3941.2,3940.9,0.001]
[1754668081318,4.161,3941.1,3940.9,0.001]
[1754668081521,4.161,3941.0,3940.9,0.001]
[1754668082326,6.2202,3941.5,3940.9,0.001]
[1754668082327,0.1272,3941.5,3940.9,0.001]
[1754668082508,4.161,3941.4,3941.1,2.53735583]
[1754668082886,4.161,3941.4,3941.2,2.53729233]
[1754668084023,4.161,3941.4,3941.3,2.5372339]
[1754668084192,0.1272,3941.5,3941.4,2.53716953]
[1754668084389,4.16,3942.0,3941.5,2.53708361]
[1754668084611,2.53650818,3942.5,3941.7,2.53692159]
[1754668084612,4.16,3942.1,3941.7,2.53692159]
[1754668084801,4.16,3942.1,3941.7,0.1272]
[1754668085291,4.16,3942.1,3942.0,2.53678335]
[1754668085692,6.094,3942.7,3941.9,0.1272]